bitfinex-derivatives/quotes_SOLF0:USTF0_20241218
["timestamp","ask_amount","ask_price","bid_price","bid_amount"]
[1734509606459,2.3092,216.56,216.54,4.7262194]
[1734509606663,2.18,216.55,216.51,3.23334486]
[1734509606961,7.9610477,216.55,216.52,4.72685127]
[1734509607168,2.3094,216.54,216.51,0.92374486]
[1734509607359,2.3094,216.54,216.52,4.72610725]
[1734509607563,2.3094,216.54,216.51,0.92374486]
[1734509608871,7.9610477,216.55,216.51,0.92374486]
[1734509608872,2.3094,216.53,216.51,0.92374486]
[1734509609170,7.9610477,216.55,216.49,5.7810477]
[1734509609376,7.9610477,216.55,216.5,4.72346909]
[1734509609570,2.18,216.55,216.51,4.72346909]
[1734509609772,2.18,216.55,216.52,4.72299075]
[1734509610071,2.3093,216.54,216.49,5.7810477]
[1734509610272,2.18,216.55,216.5,7.03271786]
[1734509610475,2.18,216.55,216.51,4.72301786]
[1734509610476,2.3093,216.54,216.51,4.72301786]
[1734509610777,2.3093,216.54,216.5,2.3097]
[1734509610975,2.3093,216.54,216.51,4.72222027]
[1734509611166,2.3093,216.54,216.5,2.3097]
[1734509611472,2.18,216.55,216.51,4.72161456]
[1734509611675,2.3094,216.53,216.5,2.3097]
[1734509611870,2.3094,216.53,216.51,4.72225954]
[1734509612064,2.3094,216.53,216.5,2.3097]
[1734509612468,4.4892,216.55,216.51,8.0906477]
[1734509612669,4.4892,216.55,216.52,4.72070797]
[1734509612874,4.4892,216.55,216.51,8.0906477]
[1734509613069,2.3093,216.54,216.52,4.72073111]
[1734509613269,2.3093,216.54,216.51,8.0906477]
[1734509613468,2.3093,216.54,216.52,4.72079039]
[1734509613678,2.3093,216.54,216.51,8.0906477]
[1734509613976,2.3093,216.54,216.52,4.72075188]
[1734509614178,4.4892,216.55,216.51,8.0906477]
[1734509614377,4.4892,216.55,216.52,4.72045886]
[1734509614575,4.4892,216.55,216.51,8.0906477]
[1734509614773,4.4892,216.55,216.52,4.72047999]
[1734509614972,4.4892,216.55,216.51,8.0906477]
[1734509615274,4.4892,216.55,216.52,4.72045218]
[1734509615477,4.4892,216.55,216.51,8.0906477]
[1734509615676,4.4892,216.55,216.52,4.72014768]
[1734509615874,4.4892,216.55,216.51,8.0906477]
[1734509616074,4.4892,216.55,216.52,4.7209351]
[1734509616274,4.4892,216.55,216.5,2.3097]
[1734509616479,4.4892,216.55,216.51,10.50205286]
[1734509616674,2.3093,216.54,216.51,5.7810477]
[1734509618381,4.4893,216.54,216.51,5.7810477]
[1734509621279,2.3094,216.53,216.51,5.7810477]
[1734509626381,2.3094,216.53,216.52,4.72312451]
[1734509627180,2.3094,216.53,216.52,4.72320782]
[1734509627485,2.3094,216.53,216.52,4.72376424]
[1734509628380,2.3094,216.53,216.52,4.72431941]
[1734509629589,2.18,216.55,216.52,4.72431941]
[1734509629783,2.3093,216.54,216.51,5.7810477]
[1734509629979,2.3093,216.54,216.52,4.72444103]
[1734509630183,2.3093,216.54,216.51,5.7810477]
[1734509630383,2.3093,216.54,216.52,4.72499802]
[1734509630587,2.3093,216.54,216.51,5.7810477]
[1734509630787,2.3093,216.54,216.52,4.72497189]
[1734509630987,2.3093,216.54,216.51,5.7810477]
[1734509631190,2.3093,216.54,216.52,4.72495075]
[1734509631383,2.3093,216.54,216.51,5.7810477]
[1734509631581,2.3093,216.54,216.52,4.72544047]
[1734509631786,2.3093,216.54,216.51,5.7810477]
[1734509631992,2.3093,216.54,216.52,4.72589875]
[1734509632291,2.3093,216.54,216.51,5.7810477]
[1734509632489,2.3093,216.54,216.52,4.72642927]
[1734509632691,2.3093,216.54,216.51,5.7810477]
[1734509632892,2.3093,216.54,216.52,4.72645118]
[1734509633092,2.3093,216.54,216.51,5.7810477]
[1734509633293,2.3093,216.54,216.52,4.72655119]
[1734509633493,2.3093,216.54,216.51,5.7810477]
[1734509633694,2.3093,216.54,216.52,4.72706732]
[1734509633894,2.3093,216.54,216.51,5.7810477]
[1734509634094,2.3093,216.54,216.52,4.72706732]
[1734509634291,2.3093,216.54,216.51,5.7810477]
[1734509634491,2.3093,216.54,216.52,4.72775723]
[1734509634786,2.3093,216.54,216.51,5.7810477]
[1734509635191,2.3093,216.54,216.52,4.72780799]
[1734509635392,2.3093,216.54,216.51,5.7810477]
[1734509635896,4.4892,216.55,216.53,5.7810477]
[1734509636096,2.18,216.55,216.51,5.7810477]
[1734509636291,2.18,216.55,216.52,4.7283841]
[1734509636491,2.18,216.55,216.53,4.7283841]
[1734509636790,2.18,216.55,216.51,5.7810477]
[1734509636996,2.3094,216.54,216.52,4.72935195]
[1734509637294,2.3094,216.54,216.53,4.72935195]
[1734509637689,2.18,216.55,216.53,4.72935195]
[1734509637887,2.18,216.61,216.54,4.72882251]
[1734509638096,2.18,216.61,216.58,5.7810477]
[1734509638296,2.18,216.61,216.58,8.0899477]
[1734509638497,2.18,216.61,216.59,4.72696129]
[1734509638795,2.18,216.61,216.58,8.0899477]
[1734509638996,2.18,216.61,216.59,4.72660717]
[1734509639187,2.18,216.61,216.6,4.72660717]
[1734509639390,2.18,216.64,216.6,10.50765487]
[1734509639590,2.18,216.64,216.6,5.7810477]
[1734509640392,2.3084,216.63,216.6,5.7810477]
[1734509642791,2.3084,216.63,216.61,4.7231044]
[1734509643001,2.3084,216.63,216.6,5.7810477]
[1734509643198,2.3084,216.63,216.61,4.72285275]
[1734509643497,2.3084,216.63,216.6,5.7810477]
[1734509643693,2.3084,216.63,216.61,4.72135223]
[1734509643902,46.78780634,216.71,216.62,5.7810477]
[1734509643903,48.96780634,216.71,216.62,5.7810477]
[1734509644092,54.74885404,216.71,216.64,5.7810477]
[1734509644695,2.3077,216.69,216.65,2.3081]
[1734509645400,4.4877,216.69,216.65,2.3081]
[1734509645899,2.18,216.69,216.64,5.7810477]
[1734509646097,2.18,216.69,216.66,2.308]
[1734509646402,57.05635404,216.71,216.66,2.308]
[1734509646595,10.2685477,216.71,216.66,2.308]
[1734509649195,2.18,216.71,216.68,2.3077]
[1734509649395,4.4873,216.73,216.68,8.0887477]
[1734509649800,2.3074,216.72,216.68,2.3077]
[1734509650807,2.3074,216.72,216.67,2.3079]
[1734509653405,4.4874,216.72,216.67,2.3079]
[1734509654207,2.18,216.73,216.68,5.7810477]
[1734509654407,2.18,216.75,216.7,5.7810477]
[1734509655206,2.18,216.75,216.71,2.3074]
[1734509655603,47.06362352,216.79,216.72,5.7810477]
[1734509655814,51.55022352,216.79,216.75,2.307]
[1734509656016,2.3066,216.79,216.75,2.307]
[1734509656209,1.4795,216.87,216.78,5.7810477]
[1734509656417,2.3061,216.84,216.79,2.3065]
[1734509658607,5.7810477,216.8,216.72,3.016]
[1734509658811,5.7810477,216.8,216.72,8.7970477]
[1734509659214,5.7810477,216.78,216.72,8.7970477]
[1734509659515,2.18,216.81,216.74,5.7810477]
[1734509659707,1.4795,216.87,216.74,5.7810477]
[1734509659708,5.7810477,216.8,216.74,5.7810477]
[1734509659914,2.3067,216.79,216.75,2.307]
[1734509660415,7.9610477,216.8,216.69,2.18]
[1734509660610,2.3068,216.78,216.73,8.0882477]
[1734509661313,7.9610477,216.8,216.73,8.0882477]
[1734509661507,2.307,216.76,216.73,8.0882477]
[1734509662310,2.3071,216.75,216.73,5.7810477]
[1734509662713,2.18,216.8,216.73,5.7810477]
[1734509663108,2.3069,216.77,216.73,8.0882477]
[1734509663316,7.9610477,216.8,216.68,2.18]
[1734509663607,7.9610477,216.8,216.72,5.7810477]
[1734509663808,7.9610477,216.8,216.72,8.0883477]
[1734509664612,2.307,216.76,216.72,8.0883477]
[1734509664813,5.7810477,216.78,216.72,2.3073]
[1734509665015,5.7810477,216.78,216.72,8.0883477]
[1734509665818,2.3071,216.75,216.72,8.0883477]
[1734509667218,2.307,216.76,216.72,8.0883477]
[1734509667620,192.23863607,217.09,216.75,5.7810477]
[1734509667920,5.48651609,216.98,216.91,5.7810477]
[1734509668115,5.48651609,216.98,216.76,9.90222118]
[1734509668116,5.7810477,216.95,216.79,2.18]
[1734509668309,5.7810477,216.95,216.88,5.7810477]
[1734509668513,5.7810477,216.95,216.77,5.40785239]
[1734509668713,2.3054,216.91,216.87,5.7810477]
[1734509668920,2.18,216.9,216.87,5.7810477]
[1734509669311,2.3054,216.91,216.89,5.7810477]
[1734509669516,2.18,216.9,216.89,5.7810477]
[1734509669915,7.3099477,216.97,216.89,5.7810477]
[1734509670117,2.3053,216.93,216.89,5.7810477]
[1734509671210,2.3053,216.92,216.87,5.7810477]
[1734509671414,2.18,216.91,216.87,5.7810477]
[1734509672515,7.9610477,216.91,216.78,4.65496931]
[1734509672714,7.9610477,216.91,216.84,5.7810477]
[1734509672915,5.7810477,216.89,216.77,6.33048928]
[1734509673122,2.306,216.86,216.81,5.7810477]
[1734509673319,2.18,216.85,216.81,5.7810477]
[1734509673511,2.18,216.84,216.81,5.7810477]
[1734509673711,2.18,216.83,216.81,5.7810477]
[1734509673921,2.18,216.82,216.81,5.7810477]
[1734509675224,2.18,216.82,216.78,2.3067]
[1734509675519,2.18,216.82,216.81,5.7810477]
[1734509676116,2.18,216.82,216.8,5.7810477]
[1734509678524,2.18,216.82,216.8,8.0875477]
[1734509678714,2.18,216.81,216.8,5.7810477]
[1734509680818,2.18,216.81,216.77,0.92263689]
[1734509681020,2.18,216.81,216.8,5.7810477]
[1734509682313,2.18,216.81,216.77,3.22943689]
[1734509682524,2.18,216.81,216.8,5.7810477]
[1734509683321,2.3064,216.82,216.8,5.7810477]
[1734509683614,2.3064,216.82,216.78,2.3068]
[1734509683615,2.18,216.81,216.78,2.3068]
[1734509683819,2.18,216.81,216.77,0.92263689]
[1734509684020,2.18,216.81,216.79,5.7810477]
[1734509684224,2.18,216.81,216.77,3.22953689]
[1734509684414,4.4865,216.81,216.79,5.7810477]
[1734509685216,2.18,216.81,216.77,0.92263689]
[1734509685522,2.18,216.81,216.75,5.7810477]
[1734509686218,2.3066,216.8,216.75,5.7810477]
[1734509686418,2.18,216.81,216.75,5.7810477]
[1734509687123,2.307,216.77,216.75,5.7810477]
[1734509687421,2.18,216.76,216.75,5.7810477]
[1734509688224,5.7810477,216.82,216.75,5.7810477]
[1734509688423,0.48987,216.93,216.81,5.7810477]
[1734509688722,2.3054,216.91,216.88,5.7810477]
[1734509688921,2.66987,216.93,216.9,5.7810477]
[1734509689121,2.66987,216.93,216.92,5.7810477]
[1734509689920,2.66987,216.93,216.88,8.98156801]
[1734509690125,2.66987,216.93,216.89,2.3056]
[1734509690326,2.66987,216.93,216.88,8.98156801]
[1734509691416,2.66987,216.93,216.88,11.28726801]
[1734509693428,4.97507,216.93,216.88,11.28726801]
[1734509694630,4.97507,216.93,216.88,8.98156801]
[1734509694631,2.3053,216.92,216.88,8.98156801]
[1734509695534,2.66987,216.93,216.88,8.98156801]
[1734509695731,2.66987,216.93,216.89,2.3056]
[1734509696532,4.97507,216.93,216.89,2.3056]
[1734509697125,2.66987,216.93,216.81,4.6832]
[1734509697434,2.66987,216.93,216.83,8.98156801]
[1734509697635,2.3055,216.91,216.87,2.3058]
[1734509698335,2.66987,216.93,216.87,2.3058]
[1734509698530,2.3054,216.92,216.87,2.3058]
[1734509700333,2.66987,216.93,216.87,2.3058]
[1734509700537,2.3055,216.9,216.86,11.28746801]
[1734509701534,2.3054,216.92,216.87,2.3058]
[1734509702440,2.66987,216.93,216.86,11.28746801]
[1734509702634,2.66987,216.93,216.67,4.6158]
[1734509702831,2.3061,216.85,216.8,2.3065]
[1734509703036,2.24,216.84,216.8,2.3065]
[1734509703432,2.24,216.84,216.79,8.98156801]
[1734509703640,2.24,216.84,216.75,1.5362]
[1734509703839,2.24,216.84,216.76,8.98156801]
[1734509704140,2.24,216.84,216.76,13.66647187]
[1734509704337,2.24,216.84,216.76,8.98156801]
[1734509705438,2.3064,216.82,216.78,2.3068]
[1734509706541,2.3065,216.81,216.77,2.3069]
[1734509707334,2.24,216.84,216.76,8.98156801]
[1734509707648,2.3066,216.8,216.76,8.98156801]
[1734509707941,4.5467,216.79,216.76,11.28846801]
[1734509708539,2.3067,216.79,216.76,11.28846801]
[1734509708740,4.5467,216.79,216.76,11.28846801]
[1734509709346,4.5467,216.79,216.76,2.3069]
[1734509709538,11.22156801,216.79,216.57,1.536]
[1734509709753,1.5915,216.78,216.64,8.98156801]
[1734509710045,4.6591,216.78,216.65,6.99853631]
[1734509710436,4.6591,216.78,216.65,2.3081]
[1734509711046,0.6908358,216.77,216.66,2.3081]
[1734509711241,4.6591,216.78,216.66,5.49295233]
[1734509711441,4.6591,216.78,216.67,8.98156801]
[1734509711837,2.24,216.77,216.67,8.98156801]
[1734509712040,2.3073,216.73,216.67,11.28946801]
[1734509712339,2.24,216.72,216.67,11.28946801]
[1734509713735,2.24,216.71,216.67,11.28946801]
[1734509714142,2.24,216.71,216.68,4.68397052]
[1734509714341,2.24,216.71,216.67,2.3078]
[1734509718148,4.5475,216.71,216.67,2.3078]
[1734509718951,4.5475,216.71,216.66,14.47452034]
[1734509719547,2.24,216.71,216.68,2.3078]
[1734509720551,2.24,216.72,216.7,2.3076]
[1734509721350,2.24,216.72,216.69,11.28926801]
[1734509722450,2.3076,216.71,216.69,8.98156801]
[1734509722650,2.3076,216.71,216.67,1.5212]
[1734509723453,2.3076,216.71,216.67,3.8291]
[1734509724943,4.5474,216.72,216.68,2.3078]
[1734509725145,2.24,216.72,216.67,1.5212]
[1734509725650,2.3076,216.71,216.67,3.8291]
[1734509726254,2.3076,216.71,216.69,5.75997471]
[1734509726447,2.24,216.72,216.67,1.5212]
[1734509726654,2.3078,216.69,216.68,5.75997471]
[1734509727145,2.3076,216.7,216.68,5.75997471]
[1734509728660,2.3076,216.7,216.66,7.80095233]
[1734509728957,2.3076,216.7,216.68,5.75997471]
[1734509729152,2.24,216.72,216.68,5.75997471]
[1734509729351,2.3077,216.7,216.66,7.80095233]
[1734509729549,2.3077,216.7,216.68,5.75997471]
[1734509729949,2.3077,216.69,216.68,5.75997471]
[1734509730359,2.24,216.72,216.68,5.75997471]
[1734509730555,2.3077,216.7,216.68,5.75997471]
[1734509732651,2.3077,216.7,216.66,7.80095233]
[1734509732849,2.3077,216.7,216.69,5.75997471]
[1734509733455,5.75997471,216.71,216.6,1.5811]
[1734509733650,5.75997471,216.68,216.62,5.75997471]
[1734509733856,2.2,216.67,216.62,5.75997471]
[1734509734055,4.5081,216.66,216.62,8.06847471]
[1734509734252,2.2,216.65,216.62,8.06847471]
[1734509735159,4.5082,216.65,216.64,5.75997471]
[1734509735552,4.5082,216.65,216.6,3.8897]
[1734509735553,2.2,216.65,216.6,3.8897]
[1734509735855,2.2,216.65,216.62,5.75997471]
[1734509737059,2.2,216.65,216.6,5.75997471]
[1734509737359,5.75997471,216.64,216.54,1.5616]
[1734509737657,5.75997471,216.62,216.56,5.75997471]
[1734509738254,5.75997471,216.57,216.49,5.75997471]
[1734509738455,2.2,216.56,216.49,5.75997471]
[1734509738856,2.2,216.56,216.44,3.1414]
[1734509738857,2.2,216.56,216.5,5.75997471]
[1734509739057,2.3095,216.52,216.5,5.75997471]
[1734509739264,2.2,216.51,216.5,5.75997471]
[1734509739958,2.2,216.51,216.47,2.3101]
[1734509740163,4.5097,216.51,216.47,2.3101]
[1734509741059,4.5097,216.51,216.47,7.84237535]
[1734509741463,4.5097,216.51,216.46,9.0160523]
[1734509741658,4.5097,216.51,216.46,11.3262523]
[1734509741961,2.3098,216.5,216.46,11.3262523]
[1734509742559,4.5097,216.51,216.47,2.3101]
[1734509743865,2.3099,216.5,216.46,7.74487306]
[1734509744353,2.2,216.51,216.44,1.5531]
[1734509744556,2.2,216.51,216.42,10.5592523]
[1734509744557,2.2,216.51,216.43,74.2158047]
[1734509745864,2.2,216.51,216.45,9.0160523]
[1734509746566,2.2,216.51,216.43,71.9053047]
[1734509747274,2.3101,216.48,216.43,71.9053047]
[1734509747474,2.2,216.51,216.42,18.2954993]
[1734509748571,2.3101,216.47,216.42,18.2954993]
[1734509748770,2.2,216.46,216.42,18.2954993]
[1734509749375,2.2,216.46,216.42,16.7522993]
[1734509749575,2.2,216.46,216.43,2.3105]
[1734509750780,4.5102,216.46,216.43,2.3105]
[1734509752383,2.2,216.46,216.36,1.5338]
[1734509752578,2.2,216.46,216.37,9.0160523]
[1734509753379,2.311,216.39,216.37,9.0160523]
[1734509753681,4.511,216.39,216.35,1.5017]
[1734509754171,2.2,216.39,216.31,1.5963]
[1734509754371,2.2,216.39,216.32,4.67171447]
[1734509754573,2.2,216.39,216.32,2.3117]
[1734509755675,2.2,216.38,216.29,2.312]
[1734509755976,1.445,216.46,216.26,10.6123523]
[1734509755977,2.2,216.37,216.26,10.6123523]
[1734509756183,2.18,216.36,216.27,4.6701165]
[1734509756474,2.18,216.36,216.26,5.45629214]
[1734509756676,1.4465,216.38,216.26,5.45629214]
[1734509756677,2.18,216.35,216.26,5.45629214]
[1734509756871,2.18,216.35,216.21,1.5266]
[1734509757071,2.18,216.35,216.23,9.0160523]
[1734509757676,9.0160523,216.36,216.24,2.3124]
[1734509757872,2.18,216.34,216.23,9.0160523]
[1734509758078,2.9594,216.37,216.23,9.0160523]
[1734509758079,2.18,216.33,216.26,9.0160523]
[1734509758283,2.18,216.32,216.26,9.0160523]
[1734509758583,2.18,216.31,216.26,9.0160523]
[1734509758982,1.5093,216.37,216.26,9.0160523]
[1734509759182,2.18,216.36,216.26,9.0160523]
[1734509759677,2.18,216.35,216.29,9.0160523]
[1734509759882,2.18,216.34,216.29,9.0160523]
[1734509760574,2.18,216.35,216.33,2.3116]
[1734509762476,2.18,216.35,216.32,2.3117]
[1734509763381,2.18,216.35,216.34,2.3115]
[1734509763576,2.18,216.35,216.32,9.0160523]
[1734509764577,2.18,216.35,216.33,2.3116]
[1734509766083,2.18,216.35,216.34,5.77825405]
[1734509766479,2.3111,216.37,216.34,5.77825405]
[1734509766679,2.18,216.36,216.34,5.77825405]
[1734509772890,2.18,216.36,216.29,2.3119]
[1734509773090,2.18,216.36,216.34,5.77825405]
[1734509773483,2.3111,216.37,216.34,8.08975405]
[1734509773885,2.3111,216.37,216.34,5.77825405]
[1734509774087,2.18,216.38,216.27,1.4703]
[1734509774289,5.77825405,216.37,216.3,8.09015405]
[1734509774884,5.77825405,216.37,216.31,2.3118]
[1734509775088,5.77825405,216.37,216.3,5.77825405]
[1734509775487,2.3117,216.33,216.3,8.09015405]
[1734509775688,2.3117,216.33,216.27,1.4703]
[1734509775689,2.18,216.33,216.28,5.77825405]
[1734509776385,2.18,216.33,216.25,1.79036]
[1734509776386,2.18,216.33,216.25,0.24446]
[1734509776687,5.77825405,216.31,216.25,0.24446]
[1734509776891,2.18,216.33,216.25,0.24446]
[1734509776892,5.77825405,216.29,216.25,0.24446]
[1734509777090,2.18,216.28,216.25,0.24446]
[1734509778389,2.3123,216.26,216.25,0.24446]
[1734509779389,5.77825405,216.27,216.18,5.77825405]
[1734509779695,2.18,216.28,216.19,4.68485946]
[1734509779696,5.77825405,216.24,216.19,4.68485946]
[1734509779893,2.313,216.2,216.19,4.68485946]
[1734509780095,2.18,216.23,216.19,9.36982713]
[1734509780398,2.18,216.23,216.2,4.68496767]
[1734509780593,2.18,216.23,216.17,2.3132]
[1734509780794,2.18,216.23,216.18,4.68737631]
[1734509781096,2.313,216.2,216.19,4.68737631]
[1734509781293,5.77825405,216.22,216.14,1.5608]
[1734509781492,5.77825405,216.22,216.15,4.69200213]
[1734509781690,2.3132,216.19,216.16,4.69200213]
[1734509781889,2.18,216.18,216.16,4.69200213]
[1734509782296,2.18,216.18,216.17,4.69522349]
[1734509782496,2.18,216.18,216.17,4.69548569]
[1734509783793,5.4229249,216.3,216.18,2.3131]
[1734509783993,2.3126,216.24,216.19,10.47304085]
[1734509784296,2.18,216.23,216.2,4.6937875]
[1734509784497,2.18,216.23,216.21,4.6937875]
[1734509784695,2.18,216.23,216.21,5.77825405]
[1734509784890,5.77825405,216.28,216.22,4.69251242]
[1734509785194,1.518,216.32,216.25,5.77825405]
[1734509785498,1.4831,216.33,216.25,5.77825405]
[1734509785499,2.18,216.31,216.25,5.77825405]
[1734509786091,2.18,216.31,216.23,9.03477461]
[1734509786092,4.4918,216.31,216.23,9.03477461]
[1734509786498,4.4918,216.31,216.24,4.69245277]
[1734509786693,4.4918,216.31,216.25,4.69245277]
[1734509786891,2.3113,216.35,216.26,13.72722738]
[1734509787096,5.66499721,216.37,216.29,9.03477461]
[1734509787292,5.66499721,216.37,216.3,4.69223377]
[1734509787492,5.66499721,216.37,216.32,9.03477461]
[1734509787691,9.03477461,216.46,216.32,9.03477461]
[1734509787996,2.18,216.45,216.33,4.68917723]
[1734509788191,2.18,216.45,216.34,4.68917723]
[1734509788392,2.3104,216.43,216.38,2.3109]
[1734509788590,2.3104,216.43,216.32,9.03477461]
[1734509788793,2.3104,216.43,216.33,4.68993977]
[1734509788996,2.3104,216.43,216.36,2.311]
[1734509789701,2.18,216.45,216.36,2.311]
[1734509790200,2.3104,216.43,216.36,2.311]
[1734509791899,2.3104,216.43,216.37,2.3109]
[1734509793707,2.3104,216.42,216.37,2.3109]
[1734509795707,2.18,216.45,216.32,9.03477461]
[1734509795907,2.3106,216.41,216.33,4.70781196]
[1734509796099,14.540992,216.46,216.34,4.70781196]
[1734509796402,2.18,216.45,216.35,13.74258657]
[1734509796714,2.18,216.45,216.36,4.70781196]
[1734509796904,2.18,216.45,216.37,4.70781196]
[1734509797402,81.80328929,216.47,216.38,9.03477461]
[1734509797605,9.03477461,216.52,216.39,4.70728618]
[1734509797809,2.18,216.51,216.44,9.03477461]
[1734509798207,1.5584,216.54,216.44,9.03477461]
[1734509798407,4.4893,216.53,216.46,2.3099]
[1734509798705,4.4893,216.53,216.44,9.03477461]
[1734509799310,2.18,216.52,216.47,2.3098]
[1734509799610,2.18,216.52,216.44,9.03477461]
[1734509799909,2.18,216.53,216.47,9.03477461]
[1734509800207,2.18,216.55,216.47,9.03477461]
[1734509800410,1.4577,216.58,216.47,9.03477461]
[1734509800609,2.18,216.56,216.5,9.03477461]
[1734509802303,84.48120101,216.6,216.5,9.03477461]
[1734509802705,84.48120101,216.6,216.47,9.03477461]
[1734509803409,2.309,216.55,216.5,2.3095]
[1734509803607,2.18,216.55,216.47,9.03477461]
[1734509803907,2.18,216.55,216.48,5.50685693]
[1734509804110,2.3092,216.54,216.49,2.3095]
[1734509804908,2.3093,216.53,216.49,2.3095]
[1734509805208,11.21477461,216.55,216.4,60.44368167]
[1734509805405,2.3098,216.48,216.41,13.71573696]
[1734509805611,4.4898,216.48,216.41,9.03477461]
[1734509806805,2.18,216.48,216.45,2.3101]
[1734509813018,2.18,216.48,216.46,2.31]
[1734509815715,2.18,216.48,216.44,2.3102]
[1734509817325,4.4898,216.48,216.44,2.3102]
[1734509817518,4.4898,216.48,216.45,2.3101]
[1734509818412,2.3099,216.47,216.43,2.3103]
[1734509818618,2.3099,216.47,216.41,9.03477461]
[1734509818824,2.18,216.48,216.41,9.03477461]
[1734509819025,2.18,216.48,216.44,2.3101]
[1734509819026,2.3099,216.47,216.44,2.3101]
[1734509819224,2.18,216.48,216.41,9.03477461]
[1734509819924,4.4898,216.48,216.41,9.03477461]
[1734509820420,4.4898,216.48,216.45,2.3101]
[1734509820723,2.18,216.48,216.41,9.03477461]
[1734509821428,2.18,216.48,216.46,2.31]
[1734509821723,2.18,216.48,216.41,9.03477461]
[1734509821927,4.4898,216.48,216.44,2.3101]
[1734509822224,4.4898,216.48,216.43,5.7733247]
[1734509823025,4.4898,216.48,216.45,2.3101]
[1734509823420,2.18,216.48,216.43,5.7733247]
[1734509823722,2.31,216.46,216.43,8.0836247]
[1734509824333,2.3101,216.45,216.42,2.3104]
[1734509824625,5.7733247,216.46,216.34,2.9912]
[1734509824830,5.7733247,216.44,216.34,1.5006]
[1734509825029,2.18,216.43,216.37,5.7733247]
[1734509825530,2.18,216.43,216.37,8.0842247]
[1734509825724,2.18,216.43,216.37,5.7733247]
[1734509825921,5.7733247,216.42,216.35,2.3111]
[1734509826121,5.7733247,216.42,216.35,8.0844247]
[1734509826821,2.3109,216.38,216.35,5.7733247]
[1734509827025,2.18,216.37,216.35,5.7733247]
[1734509827422,4.491,216.37,216.35,5.7733247]
[1734509827627,2.18,216.37,216.3,5.7733247]
[1734509828022,2.18,216.37,216.27,9.03141066]
[1734509828221,2.3114,216.33,216.29,2.3118]
[1734509828426,2.18,216.32,216.24,12.75551066]
[1734509828627,2.18,216.32,216.25,4.70279725]
[1734509828832,2.18,216.32,216.26,7.01489725]
[1734509828833,2.3117,216.3,216.26,7.01489725]
[1734509829023,2.3117,216.3,216.26,2.3121]
[1734509829228,2.18,216.32,216.27,4.70910193]
[1734509829429,4.4915,216.32,216.28,4.70830539]
[1734509829727,4.4915,216.32,216.27,2.3119]
[1734509829927,4.4915,216.32,216.28,4.70822695]
[1734509830124,4.4915,216.32,216.29,4.71201908]
[1734509830328,4.4915,216.32,216.27,2.3119]
[1734509830629,4.4915,216.32,216.28,4.71102688]
[1734509830831,2.18,216.32,216.24,16.03802742]
[1734509831028,2.18,216.32,216.25,4.71117511]
[1734509831231,2.18,216.32,216.09,52.86]
[1734509831232,2.18,216.32,216.19,9.03141066]
[1734509831634,9.03141066,216.31,216.2,4.71411691]
[1734509831832,12.02721066,216.31,216.19,14.69443804]
[1734509832036,12.02721066,216.31,216.2,4.71573404]
[1734509832230,12.02721066,216.31,216.19,9.03141066]
[1734509832531,12.02721066,216.31,216.2,4.71250621]
[1734509832737,12.02721066,216.31,216.16,10.50521066]
[1734509832937,12.02721066,216.31,216.17,4.71151316]
[1734509833135,12.02721066,216.31,216.18,4.71151316]
[1734509833341,12.02721066,216.31,216.19,4.71151316]
[1734509833535,9.03141066,216.28,216.16,10.50521066]
[1734509833738,2.18,216.27,216.16,9.03141066]
[1734509833940,2.18,216.27,216.17,4.70812683]
[1734509833941,3.7648,216.27,216.17,4.70812683]
[1734509834135,3.7648,216.27,216.18,4.70812683]
[1734509834338,3.7648,216.27,216.17,2.3131]
[1734509834833,2.3126,216.22,216.17,2.3131]
[1734509835036,2.18,216.21,216.17,2.3131]
[1734509835237,2.18,216.21,216.16,11.34461066]
[1734509835433,2.18,216.21,216.14,1.5784]
[1734509835434,2.3128,216.2,216.14,1.5784]
[1734509835639,2.3128,216.2,216.15,4.70162599]